Cogmind - Beta 13 @@@ ROGUE MODE // 2024.07.01 @ 10:43:34 Player: RAT Result: Destroyed by G-34 Mercenary with Small Laser Performance ------------- Evolutions (1) 500 Regions Visited (3) 600 Robots Destroyed (10) 50 Value Destroyed (286) 286 Prototype IDs (0) 0 Alien Tech Used (0) 0 Bonus (0) 0 TOTAL SCORE: 1436 Bonus ------- None Cogmind --------- Core Integrity 0/400 Matter 300/300 Energy 100/100 System Corruption 4% Temperature Cool (6) Movement Core (350) Ox6 Location -9/Mines Parts ------- > --- POWER (1) -------- (None) > --- PROPULSION (4) --- (None) > --- UTILITY (2) ------ Large Storage Unit > --- WEAPON (2) ------- (None) > --- INVENTORY (15) --- Ion Engine Wheel Beam Rifle Light Assault Rifle Peak State ------------ > --- POWER ------------ Light Nuclear Core > --- PROPULSION ------- Aluminum Leg Aluminum Leg Wheel Wheel > --- UTILITY ---------- Large Storage Unit Seismic Detector > --- WEAPON ----------- Small Laser Light Assault Rifle > --- INVENTORY -------- Ion Engine Ion Engine Aluminum Leg [Rating: 11] Favorites ----------- Power Ion Engine Engine Ion Engine Power Core Light Nuclear Core Propulsion Wheel Leg Aluminum Leg Wheel Wheel Utility Large Storage Unit Device Seismic Detector Storage Large Storage Unit Weapon Small Laser Energy Gun Small Laser Ballistic Gun Light Assault Rifle Build | -11 -10 -9 -9 ------- Run | Yrd Mat Mat Min Slots Evolved 2 | . . 2 . Power . | . . . . Propulsion 2 | . . 2 . Utility . | . . . . Weapon . | . . . . Parts Attached 18 | 7 4 7 . Power 4 | 1 1 2 . Engine 3 | 1 . 2 . Core 1 | . 1 . . Reactor . | . . . . Propulsion 7 | 2 2 3 . Treads . | . . . . Leg 3 | . . 3 . Wheel 4 | 2 2 . . Hover . | . . . . Flight . | . . . . Utility 4 | 2 1 1 . Device 2 | 1 . 1 . Storage 2 | 1 1 . . Processor . | . . . . Hackware . | . . . . Protection . | . . . . Artifact . | . . . . Weapon 3 | 2 . 1 . Energy Gun 1 | 1 . . . Energy Cannon . | . . . . Ballistic Gun 2 | 1 . 1 . Ballistic Cannon . | . . . . Launcher . | . . . . Special Weapon . | . . . . Impact Weapon . | . . . . Slashing Weapon . | . . . . Piercing Weapon . | . . . . Special Melee Weapon . | . . . . Unidentified Prototypes . | . . . . Parts Lost 12 | . 2 2 8 Power 2 | . . 1 1 Propulsion 6 | . 2 . 4 Utility 2 | . . 1 1 Weapon 2 | . . . 2 Highest Loss Streak 8 | . 1 2 8 To Critical Strikes . | . . . . Average Slot Usage (%) 90 | . 100 96 51 Engine 7 | . 7 9 1 Core 3 | . 7 1 . Leg 11 | . . 22 13 Wheel 22 | . 28 21 8 Device 10 | . 14 8 6 Storage 12 | . 14 11 11 Energy Gun 11 | . 14 11 4 Ballistic Gun 11 | . 14 11 5 Naked Turns . | . . . . Heaviest Build 32 | 13 28 32 32 Greatest Support 30 | 26 26 30 30 Greatest Overweight (x) 2 | . 1 1 2 Average Overweight (x) . | . . 1 1 Largest Inventory Capacity 15 | 8 15 15 15 Average Capacity 13 | 7 14 15 15 Most Carried 7 | 5 7 5 4 Average Carried 4 | 3 5 3 4 Final Capacity 15 | 8 15 15 15 Final Carried 5 | 5 5 4 4 Class Distribution -------------------- 95% | Mutant 4% | Scavenger-Mutant Dominant Class ---------------- Mutant | -10/Materials Mutant | -9/Materials Mutant | -9/Mines Resources | -11 -10 -9 -9 ----------- Run | Yrd Mat Mat Min Matter Collected 415 | 280 37 98 . Remotely . | . . . . Salvage Created 468 | 144 141 183 . Parts 18 | 5 6 7 . Haulers Intercepted . | . . . . Recyclers Shooed 2 | . 2 . . Parts Field Recycled . | . . . . Retrieved Matter . | . . . . Parts Self-Destructed . | . . . . Prevented . | . . . . Kills | -11 -10 -9 -9 ------- Run | Yrd Mat Mat Min Combat Hostiles Destroyed 6 | . 3 3 . Guns 6 | . 3 3 . Classes Destroyed 5 | 2 1 2 . Tunneler 2 | 2 . . . Recycler 1 | 1 . . . Watcher 1 | . . 1 . Grunt 3 | . 3 . . Sentry 3 | . . 3 . Best Kill Streak 3 | 2 3 1 . Combat Bots Only 3 | . 3 1 . Max Kills in Single Turn 1 | 1 1 1 . Gunslinging . | . . . . Exploded . | . . . . Melee . | . . . . Uniques/NPCs Destroyed . | . . . . Combat | -11 -10 -9 -9 -------- Run | Yrd Mat Mat Min Hostile Shots Fired 151 | . 31 55 65 Missed 37 | . 9 14 14 Damage Taken 1418 | . 256 570 592 Core 441 | . 37 152 252 Absorbed by Shields . | . . . . Core Remaining (%) 92 | 100 85 . . Volleys Fired 48 | 10 15 23 . Largest 2 | 2 2 2 . Hottest 63 | 60 60 63 . Shots Fired 96 | 20 30 46 . Gun 96 | 20 30 46 . Cannon . | . . . . Launcher . | . . . . Special . | . . . . Kinetic 48 | 10 15 23 . Thermal 48 | 10 15 23 . Explosive . | . . . . Electromagnetic . | . . . . Robot Hit Streak 20 | 6 5 20 . Robot Miss Streak 4 | 2 4 2 . Penetration Max . | . . . . Secondary Targets . | . . . . Shots Hit Robots 65 | 11 16 38 . Core Hits 23 | 5 9 8 1 Critical Kills . | . . . . Critical Parts Destroyed . | . . . . Critical Strikes . | . . . . Melee Attacks . | . . . . Impact . | . . . . Slashing . | . . . . Piercing . | . . . . Sneak Attacks . | . . . . Combat Hostiles . | . . . . Follow-up Attacks . | . . . . Damage Inflicted 672 | 112 151 406 3 Guns 669 | 112 151 406 . Cannons . | . . . . Explosions . | . . . . Melee . | . . . . Ramming 3 | . . . 3 Kinetic 288 | 41 42 205 . Thermal 381 | 71 109 201 . Explosive . | . . . . Electromagnetic . | . . . . Impact . | . . . . Slashing . | . . . . Piercing . | . . . . Highest Corruption 4 | . 1 . 4 Average Corruption 3 | . 1 . 4 Corruption Purged . | . . . . Corruption Blocked . | . . . . Effects 1 | . . . 1 Message Errors 1 | . . . 1 Overload Shots . | . . . . Overflow Damage . | . . . . Projectiles . | . . . . Explosions . | . . . . Melee . | . . . . Knockbacks . | . . . . Impact . | . . . . Kinetic . | . . . . Secondary . | . . . . Self-Inflicted Damage 1 | . . . 1 Shots . | . . . . Rammed 1 | . . . 1 Targets Rammed 1 | . . . 1 Kicked . | . . . . Crushed . | . . . . Highest Temperature 113 | 40 113 51 . Average Temperature 31 | 17 48 17 . Received Heat Transfer 648 | . 120 234 294 Siege Activations . | . . . . Robots Corrupted . | . . . . Combat Hostiles . | . . . . Parts Fried . | . . . . Impact Corruptions . | . . . . Robots Melted . | . . . . Combat Hostiles . | . . . . Parts Melted 2 | . . 2 . Heat Transferred 875 | 150 250 475 . Parts Sabotaged . | . . . . Parts Stolen . | . . . . Parts Stripped . | . . . . Power Chain Reactions . | . . . . Alert | -11 -10 -9 -9 ------- Run | Yrd Mat Mat Min Peak Influence 194 | 15 144 194 90 Initial 75 | . 9 56 75 Average 81 | 6 86 122 47 Maximum Alert Level . | . . . . Low Security (%) 100 | 100 100 100 100 Level 1 . | . . . . Level 2 . | . . . . Level 3 . | . . . . Level 4 . | . . . . Level 5 . | . . . . High Security . | . . . . Max Security . | . . . . Squads Dispatched . | . . . . Investigation . | . . . . Extermination . | . . . . Reinforcement . | . . . . Assault . | . . . . Garrison . | . . . . Intercept . | . . . . Searches Triggered . | . . . . Construction Impeded . | . . . . Haulers Reinforced . | . . . . Active Scanning Responses . | . . . . Cargo Convoy Interrupts . | . . . . Stealth | -11 -10 -9 -9 --------- Run | Yrd Mat Mat Min Distress Signals 3 | . 1 2 . Communications Jammed . | . . . . Distress Signals . | . . . . Times Spotted 23 | . 11 9 3 Peak Tracking Total 6 | . 4 6 3 Tactical Retreats 2 | . 2 . . Traps | -11 -10 -9 -9 ------- Run | Yrd Mat Mat Min Traps Triggered 1 | . 1 . . Indirectly . | . . . . Trap Hack Attempts . | . . . . Triggered . | . . . . Disarmed . | . . . . Reprogrammed . | . . . . Reused . | . . . . Traps Extracted . | . . . . Installed . | . . . . Triggered . | . . . . Machines | -11 -10 -9 -9 ---------- Run | Yrd Mat Mat Min Machines Disabled . | . . . . Max in Single Turn . | . . . . Machines Repaired . | . . . . Machines Dismantled . | . . . . Machines Sabotaged . | . . . . Overloaded Fab Kills . | . . . . Hacking | -11 -10 -9 -9 --------- Run | Yrd Mat Mat Min Machines Accessed . | . . . . Terminals . | . . . . Fabricators . | . . . . Repair Stations . | . . . . Recycling Units . | . . . . Scanalyzers . | . . . . Garrison Access . | . . . . Total Hacks . | . . . . Successful . | . . . . Failed . | . . . . Catastrophic . | . . . . Database Lockouts . | . . . . Manual . | . . . . Terminals . | . . . . Fabricators . | . . . . Repair Stations . | . . . . Recycling Units . | . . . . Scanalyzers . | . . . . Garrison Access . | . . . . Terminal Hacks . | . . . . Fabricator Hacks . | . . . . Repair Station Hacks . | . . . . Recycling Unit Hacks . | . . . . Scanalyzer . | . . . . Garrison Access Hacks . | . . . . Unauthorized Hacks . | . . . . Terminals . | . . . . Fabricators . | . . . . Repair Stations . | . . . . Recycling Units . | . . . . Scanalyzers . | . . . . Garrison Access . | . . . . Data Cores Recovered . | . . . . Used . | . . . . Hacking Detections . | . . . . Full Trace Events . | . . . . Feedback Events . | . . . . Feedback Blocked . | . . . . Robot Schematics Acquired . | . . . . Robots Built . | . . . . Authchips . | . . . . Time . | . . . . Total Robot Build Rating . | . . . . Part Schematics Acquired . | . . . . Parts Built . | . . . . Authchips . | . . . . Time . | . . . . Total Part Build Rating . | . . . . Parts Repaired . | . . . . Time . | . . . . Parts Recycled . | . . . . Recycled Matter . | . . . . Retrieved Matter . | . . . . Retrieved Components . | . . . . Parts Scanalyzed . | . . . . Part Schematics Acquired . | . . . . Parts Damaged . | . . . . Bothacking | -11 -10 -9 -9 ------------ Run | Yrd Mat Mat Min Used RIF Installer . | . . . . Robots Hacked . | . . . . Non-combat . | . . . . Combat . | . . . . Robot Hacks Applied . | . . . . Relay Couplers Released . | . . . . Fabnet Peak Effective % . | . . . . Robots Rewired . | . . . . Allies Hacked . | . . . . Hacks Repelled . | . . . . Allies | -11 -10 -9 -9 -------- Run | Yrd Mat Mat Min Total Allies . | . . . . Largest Group . | . . . . Highest-Rated Group . | . . . . Highest-Rated Ally . | . . . . Total Orders . | . . . . Ally Attacks . | . . . . Total Damage . | . . . . Kills . | . . . . Allies Corrupted . | . . . . Allies Melted . | . . . . Intel | -11 -10 -9 -9 ------- Run | Yrd Mat Mat Min Robot Analysis Total . | . . . . Derelict Logs Recovered . | . . . . Drone Launches . | . . . . Drone Recoveries . | . . . . Exploration | -11 -10 -9 -9 ------------- Run | Yrd Mat Mat Min Turns Passed 650 | 110 220 241 79 Spaces Moved 373 | 67 132 155 19 Core 6 | 6 . . . Treads . | . . . . Legs 23 | . . 4 19 Wheels 344 | 61 132 151 . Hover . | . . . . Flight . | . . . . Fastest Speed 50 | 50 90 95 190 Average Speed 102 | 86 104 97 197 Slowest Speed 260 | 90 105 190 260 Overloaded Moves . | . . . . Propulsion Burnouts . | . . . . Robots Hopped . | . . . . Cave-ins Triggered . | . . . . Exploration Rate (%) 16 | 5 34 19 7 Regions Visited 3 Branch Regions 1 Pre-discovered Areas . | . . . . Known Exits Taken . | . . . . Unknown Exits Taken 3 | 1 1 1 . Scrap Searched . | . . . . Spaces Dug . | . . . . Terrain Destroyed . | . . . . Melee . | . . . . Projectile . | . . . . AOE . | . . . . Terrain Rammed . | . . . . Walls Destroyed . | . . . . Machines Disabled . | . . . . Actions | -11 -10 -9 -9 --------- Run | Yrd Mat Mat Min Total 544 | 99 187 200 58 Wait 91 | 7 32 14 38 Move 370 | 66 131 154 19 Hop . | . . . . Pick Up 13 | 9 3 1 . Fast Attach 4 | 3 . 1 . Attach 9 | 4 2 3 . Detach . | . . . . Swap 5 | . 2 3 . Drop 3 | . 2 1 . Fire 48 | 10 15 23 . Melee . | . . . . Ram 1 | . . . 1 Kick . | . . . . Crush . | . . . . Escape Stasis . | . . . . Rewire . | . . . . Trap . | . . . . Miscellaneous . | . . . . Route ------- -11/Scrapyard -10/Materials (discovered 2 exits: [*Mat] / [*Min]) -9/Materials -9/Mines History --------- Turn | Location | Event 9 | -11/Scrapyard | Discovered new exit (range 16) 111 | -11/Scrapyard | Entered Materials 270 | -10/Materials | Discovered new exit (range 14) 309 | -10/Materials | Build established: Mutant 315 | -10/Materials | Discovered new exit (range 15) 331 | -10/Materials | Entered another Materials area 331 | -9/Materials | Evolved 2 slots: Propulsion x2 537 | -9/Materials | Discovered new exit (range 7) 572 | -9/Materials | Entered Mines 625 | -9/Mines | Core integrity fell below 50% 642 | -9/Mines | Core integrity fell below 20% 651 | -9/Mines | Destroyed by G-34 Mercenary with Small Laser Last Messages --------------- 00574_ Knocked back. 00583_ Aluminum Leg destroyed. 00583_ System corrupted by crushing effect (+4). 00588_ Imp. Ion Engine destroyed. 00591_ PAXHU8=0DMLI2PB#|3R>KJM=::28:ITUX: 00597_ T-07 Excavator is excavating. 00605_ Sml. Laser destroyed. 00605_ T-07 Excavator is excavating. 00606_ B-36 Bruiser destroyed. 00609_ T-07 Excavator is excavating. 00610_ Hvy. Assault Rifle destroyed. 00614_ T-07 Excavator is excavating. 00614_ Aluminum Leg destroyed. 00618_ T-07 Excavator is excavating. 00621_ Aluminum Leg destroyed. 00622_ Slammed into G-34 Mercenary. 00622_ Destabilizing: System interference. 00622_ Heat Sink temporarily disabled. 00623_ Heat Sink destroyed. 00630_ Wheel destroyed. Map ----- +----------------------------------------------------+ | | | | | | | | | | | | | | | | | | | | | | | | | ?????????????????????????????????????????? | | ?????????????????????????????????????????? | | ?????????????????????????????????????????? | | ?????????????????????????????????????????? | | ?????????????????????????????????????????? | | ?????????????????????????????????????????? | | ????###??????????????????????????????????? | | ????# #?????????##??????????????????????? | | ????# ##???????# ####??????????????????? | | ????# ##??????# #??????????????????? | | ?????# ##?????# #??????????????????? | | ??????# ##????##* #???????????????????? | | ???????# ######=g=#???????????????????? | | ???????## ##@ # #???????????????????? | | ????????# g ####???????????????????? | | ???????## ##??????????????????????? | | ???????# ###???????????????????????? | | ???????# ##?????????????????????????? | | ???????# #??????????????????????????? | | ???????## ##??????????????????????????? | | ????????## ##???????????????????????????? | | ?????????## #????????????????????????????? | | ??????????# #????????????????????????????? | | ??????????# ????????????????????????????? | | ?????????? ????????????????????????????? | | ?????????? ???????????????????????????? | | ?????????? ???????????????????????????? | | ?????????? ??????????????????????????? | | ??????????# #??????????????????????????? | | ?????????????##??????????????????????????? | | ?????????????????????????????????????????? | | ?????????????????????????????????????????? | | ?????????????????????????????????????????? | | ?????????????????????????????????????????? | | ?????????????????????????????????????????? | | ?????????????????????????????????????????? | | ?????????????????????????????????????????? | | ?????????????????????????????????????????? | +----------------------------------------------------+ Best States ------------- Heat Dissipation 38 Energy Generation 14 Energy Capacity 265 Matter Stores 300 Matter Capacity 300 Sight Range 16 Terrain Scan Density 10 Evasion (%) 42 Item Schematics ----------------- None Robot Schematics ------------------ None Fabricated ------------ Nothing Alien Tech Used ----------------- None Achievements -------------- None Challenges ------------ None Game ------ Seed QuantumTargetingSteel Manual? 0 Play Time 00:07:52 Cumulative 16.8 hours Start 2024.07.01 @ 10:35:52 End 2024.07.01 @ 10:43:34 Sessions 1 Manual Loads 0 Difficulty Rogue Special Mode None Game No. 72 Rogue 72 Adventurer 0 Explorer 0 Win Type - Total 0 Types 0/0/0/0/0/0/0/0/0 Lore% 5 Gallery% 20 Achievement% 14 Wizard Run 0 Options --------- Layout 1 ASCII 0 Keyboard 0 Movement Mouse Keybinds 0 Fullscreen 1 Font 24/Smallcaps Map View 50x35 Zoom Use 0% Tactical HUD 1 Map Filters NONE Filters NONE Steam 1 RUN: ca4ca285-3e00-49af-b751-616f2b2cc310